fUST/lending_fUST_20260405
["ID","MTS","AMOUNT","RATE_DAILY","PERIOD"]
[419757624,1775357448042,-151.0,0.00023204,2]
[419757626,1775357448051,-240.637436,0.00023204,2]
[419757628,1775357448060,-240.637436,0.00023204,2]
[419757630,1775357448070,-240.637436,0.00023204,2]
[419757632,1775357448079,-438.72241836,0.00023204,2]
[419757634,1775357448088,-644.79446246,0.00023204,2]
[419757636,1775357448097,-151.0,0.00023215,2]
[419757638,1775357448107,-151.0,0.00023218,2]
[419757640,1775357448115,-151.0,0.00023218,2]
[419757642,1775357448124,-151.0,0.00023218,2]
[419757644,1775357448133,-151.0,0.00023218,2]
[419757646,1775357448142,-151.0,0.00023218,2]
[419757657,1775357448237,-193.473254,0.00023218,2]
[419757659,1775357448247,-668.65185757,0.00023259,2]
[419757661,1775357448256,-167.77255139,0.00023281,3]
[419757663,1775357448265,-500.0,0.00023285,2]
[419757665,1775357448274,-693.3919763,0.00023314,2]
[419757667,1775357448282,-151.0,0.00023328,2]
[419757668,1775357448291,-151.0,0.00023328,2]
[419757670,1775357448300,-262.665671,0.00023328,2]
[419757672,1775357448309,-151.0,0.00023328,2]
[419757674,1775357448318,-243.776547,0.00023328,2]
[419757676,1775357448327,-151.0,0.00023328,2]
[419757678,1775357448336,-930.7,0.00023364,2]
[419757680,1775357448345,-719.04747942,0.00023369,2]
[419757682,1775357448354,-790.0,0.000234,2]
[419757684,1775357448363,-1761.36568,0.000234,2]
[419757686,1775357448372,-585.35384996,0.00023424,2]
[419757688,1775357448380,-500.0,0.00023532,2]
[419757690,1775357448390,-2312.83697232,0.00023532,2]
[419757692,1775357448398,-500.0,0.00023559,2]
[419757694,1775357448407,-1000.0,0.00023591,2]
[419757695,1775357448416,-1140.99471972,0.00023591,2]
[419757697,1775357448425,-151.0,0.00023595,2]
[419757699,1775357448434,-2148.338339,0.00023595,2]
[419757701,1775357448442,-151.0,0.00023595,2]
[419757703,1775357448452,-2148.338339,0.00023595,2]
[419757705,1775357448461,-262.669539,0.00023595,2]
[419757707,1775357448470,-2148.338339,0.00023595,2]
[419757709,1775357448479,-2148.338339,0.00023595,2]
[419757711,1775357448488,-151.0,0.00023595,2]
[419757713,1775357448497,-2071.029602,0.00023595,2]
[419757715,1775357448506,-2071.029602,0.00023595,2]
[419757717,1775357448515,-2071.029602,0.00023595,2]
[419757719,1775357448523,-2071.029602,0.00023595,2]
[419757721,1775357448532,-151.0,0.00023595,2]
[419757723,1775357448543,-930.7,0.00023595,2]
[419757725,1775357448552,-1000.0,0.00023615,2]
[419757726,1775357448561,-1000.0,0.00023648,2]
[419757728,1775357448571,-1000.0,0.00023648,2]
[419757730,1775357448580,-908.68874151,0.00023648,2]
[419757732,1775357448589,-1001.88064439,0.00023648,2]
[419757734,1775357448598,-1000.0,0.00023648,2]
[419757736,1775357448608,-1000.0,0.00023648,2]
[419757738,1775357448617,-1000.0,0.00023648,2]
[419757740,1775357448626,-151.0,0.00023648,2]
[419757742,1775357448634,-151.0,0.00023648,2]
[419757744,1775357448643,-151.0,0.00023648,2]
[419757746,1775357448652,-151.0,0.00023648,2]
[419757748,1775357448661,-151.0,0.00023648,2]
[419757750,1775357448670,-151.0,0.00023648,2]
[419757752,1775357448679,-151.0,0.00023648,2]
[419757754,1775357448688,-151.0,0.00023648,2]
[419757756,1775357448697,-151.0,0.00023648,2]
[419757758,1775357448706,-151.0,0.00023648,2]
[419757760,1775357448715,-151.0,0.00023648,2]
[419757762,1775357448724,-166.604036,0.00023648,2]
[419757764,1775357448732,-151.0,0.00023648,2]
[419757766,1775357448741,-151.0,0.00023648,2]
[419757768,1775357448750,-151.0,0.00023648,2]
[419757769,1775357448759,-152.434313,0.00023648,2]
[419757771,1775357448767,-151.264515,0.00023648,2]
[419757773,1775357448776,-151.264515,0.00023648,2]
[419757775,1775357448785,-151.264515,0.00023648,2]
[419757777,1775357448794,-151.264515,0.00023648,2]
[419757779,1775357448802,-151.0,0.00023648,2]
[419757781,1775357448812,-151.264515,0.00023648,2]
[419757783,1775357448822,-151.0,0.00023648,2]
[419757785,1775357448831,-151.264515,0.00023648,2]
[419757787,1775357448840,-151.0,0.00023648,2]
[419757789,1775357448850,-477.316396,0.00023648,2]
[419757791,1775357448859,-151.264515,0.00023648,2]
[419757793,1775357448868,-151.0,0.00023648,2]
[419757795,1775357448877,-477.316396,0.00023648,2]
[419757797,1775357448886,-151.264515,0.00023648,2]
[419757799,1775357448895,-151.0,0.00023648,2]
[419757801,1775357448904,-477.316396,0.00023648,2]
[419757803,1775357448913,-151.0,0.00023648,2]
[419757805,1775357448922,-477.316396,0.00023648,2]
[419757807,1775357448931,-151.0,0.00023648,2]
[419757809,1775357448940,-477.316396,0.00023648,2]
[419757811,1775357448948,-160.342838,0.00023648,2]
[419757812,1775357448958,-477.316396,0.00023648,2]
[419757814,1775357448967,-477.316396,0.00023648,2]
[419757816,1775357448976,-477.316396,0.00023648,2]
[419757818,1775357448986,-240.637436,0.00023648,2]
[419757820,1775357448995,-152.220068,0.00023648,2]
[419757822,1775357449004,-240.637436,0.00023648,2]
[419757824,1775357449013,-240.637436,0.00023648,2]
[419757826,1775357449023,-240.637436,0.00023648,2]
[419757828,1775357449032,-240.637436,0.00023648,2]
[419757830,1775357449042,-240.637436,0.00023648,2]
[419757832,1775357449051,-240.637436,0.00023648,2]
[419757834,1775357449060,-240.637436,0.00023648,2]
[419757836,1775357449069,-151.0,0.00023648,2]
[419757838,1775357449078,-151.0,0.00023648,2]
[419757840,1775357449088,-247.47099,0.00023648,2]
[419757842,1775357449097,-1000.0,0.00023685,2]
[419757844,1775357449106,-1000.0,0.00023685,2]
[419757846,1775357449115,-1000.0,0.00023685,2]
[419757848,1775357449124,-199.93379272,0.00023685,2]
[419757850,1775357449133,-150.37564254,0.00023685,2]
[419757852,1775357449142,-1000.0,0.00023685,2]
[419757854,1775357449151,-1000.0,0.00023685,2]
[419757855,1775357449160,-1000.0,0.00023685,2]
[419757857,1775357449169,-1000.0,0.00023685,2]
[419757859,1775357449179,-151.0,0.00023733,2]
[419757861,1775357449188,-151.0,0.00023733,2]
[419757863,1775357449197,-151.0,0.00023733,2]
[419757865,1775357449206,-170.320851,0.00023733,2]
[419757867,1775357449215,-172.33440528,0.00023825,2]
[419757869,1775357449224,-196.035,0.00023826,2]
[419757871,1775357449234,-930.7,0.00023826,2]
[419757873,1775357449243,-500.0,0.00023833,2]
[419757875,1775357449252,-250.0,0.00023836,5]
[419757877,1775357449262,-157.24,0.00023836,5]
[419757879,1775357449271,-500.83231035,0.00023873,2]
[419757881,1775357449280,-500.0,0.00023873,2]
[419757883,1775357449289,-327.41865872,0.00023873,2]
[419757885,1775357449298,-500.0,0.00023873,2]
[419757887,1775357449307,-500.0,0.00023873,2]
[419757889,1775357449316,-500.0,0.00023873,2]
[419757891,1775357449325,-306.41796697,0.00023873,2]
[419757893,1775357449334,-621.3768672,0.00023873,2]
[419757895,1775357449343,-500.0,0.00023873,2]
[419757897,1775357449352,-500.0,0.00023873,2]
[419757899,1775357449361,-500.0,0.00023873,2]
[419757901,1775357449370,-500.0,0.00023873,2]
[419757903,1775357449379,-500.0,0.00023873,2]
[419757905,1775357449388,-500.0,0.00023873,2]
[419757907,1775357449396,-500.0,0.00023873,2]
[419757909,1775357449406,-500.0,0.00023873,2]
[419757911,1775357449415,-500.0,0.00023873,2]
[419757913,1775357449423,-500.0,0.00023873,2]
[419757915,1775357449433,-500.0,0.00023873,2]
[419757917,1775357449442,-500.0,0.00023873,2]
[419757919,1775357449452,-500.0,0.00023873,2]
[419757920,1775357449461,-500.0,0.00023873,2]
[419757922,1775357449470,-500.0,0.00023873,2]
[419757924,1775357449479,-500.0,0.00023873,2]
[419757926,1775357449488,-500.0,0.00023873,2]
[419757928,1775357449498,-500.0,0.00023873,2]
[419757930,1775357449506,-500.0,0.00023873,2]
[419757932,1775357449515,-252.006291,0.00023873,2]
[419757934,1775357449525,-2148.338339,0.00023873,2]
[419757936,1775357449534,-151.0,0.00023873,2]
[419757938,1775357449543,-2148.338339,0.00023873,2]
[419757940,1775357449552,-2148.338339,0.00023873,2]
[419757942,1775357449560,-2148.338339,0.00023873,2]
[419757944,1775357449569,-151.0,0.00023873,2]
[419757946,1775357449578,-2071.029602,0.00023873,2]
[419757948,1775357449587,-2071.029602,0.00023873,2]
[419757950,1775357449595,-2071.029602,0.00023873,2]
[419757952,1775357449604,-2071.029602,0.00023873,2]
[419757953,1775357449613,-151.0,0.00023873,2]
[419757955,1775357449622,-151.0,0.00023873,2]
[419757957,1775357449631,-151.0,0.00023873,2]
[419757959,1775357449640,-199.317,0.00023897,2]
[419757961,1775357449650,-156.65,0.00023897,2]
[419757963,1775357449659,-200.0,0.00023897,2]
[419757965,1775357449668,-151.0,0.00023898,2]
[419757967,1775357449676,-151.0,0.00023898,2]
[419757969,1775357449685,-151.0,0.00023898,2]
[419757971,1775357449694,-151.0,0.00023898,2]
[419757973,1775357449703,-151.0,0.00023898,2]
[419757975,1775357449713,-151.0,0.00023898,2]
[419757977,1775357449722,-151.0,0.00023898,2]
[419757979,1775357449731,-151.0,0.00023898,2]
[419757981,1775357449741,-151.0,0.00023898,2]
[419757983,1775357449751,-151.0,0.00023898,2]
[419757985,1775357449760,-151.0,0.00023898,2]
[419757987,1775357449768,-151.0,0.00023898,2]
[419757989,1775357449777,-151.0,0.00023898,2]
[419757991,1775357449787,-151.0,0.00023898,2]
[419757993,1775357449796,-151.0,0.00023898,2]
[419757995,1775357449806,-151.0,0.00023898,2]
[419757996,1775357449816,-151.0,0.00023898,2]
[419757998,1775357449825,-151.0,0.00023898,2]
[419758000,1775357449834,-151.0,0.00023898,2]
[419758002,1775357449843,-151.0,0.00023898,2]
[419758004,1775357449852,-220.889804,0.00023898,2]
[419758006,1775357449861,-151.0,0.00023898,2]
[419758008,1775357449870,-151.0,0.00023898,2]
[419758010,1775357449879,-163.400913,0.00023898,2]
[419758012,1775357449888,-151.0,0.00023898,2]
[419758014,1775357449897,-151.0,0.00023898,2]
[419758016,1775357449906,-151.0,0.00023898,2]
[419758018,1775357449915,-191.291288,0.00023898,2]
[419758020,1775357449924,-151.000011,0.00023898,2]
[419758022,1775357449933,-151.0,0.00023898,2]
[419758024,1775357450020,-151.0,0.00023898,2]
[419758025,1775357450030,-151.0,0.00023898,2]
[419758026,1775357450039,-151.0,0.00023898,2]
[419758027,1775357450049,-151.0,0.00023898,2]
[419758028,1775357450058,-258.407222,0.00023898,2]
[419758030,1775357450067,-151.0,0.00023898,2]
[419758032,1775357450076,-151.0,0.00023898,2]
[419758034,1775357450085,-151.0,0.00023898,2]
[419758036,1775357450094,-244.291777,0.00023898,2]
[419758038,1775357450103,-151.0,0.00023898,2]
[419758040,1775357450112,-151.0,0.00023898,2]
[419758042,1775357450120,-151.0,0.00023898,2]
[419758044,1775357450129,-151.0,0.00023898,2]
[419758046,1775357450138,-151.0,0.00023898,2]
[419758047,1775357450146,-151.0,0.00023898,2]
[419758049,1775357450155,-151.0,0.00023898,2]
[419758051,1775357450165,-151.0,0.00023898,2]
[419758053,1775357450174,-303.7716,0.00023898,2]
[419758055,1775357450183,-155.137789,0.00023898,2]
[419758057,1775357450192,-303.7716,0.00023898,2]
[419758060,1775357450201,-303.7716,0.00023898,2]
[419758062,1775357450210,-303.7716,0.00023898,2]
[419758064,1775357450219,-303.7716,0.00023898,2]
[419758065,1775357450228,-303.7716,0.00023898,2]
[419758067,1775357450238,-303.7716,0.00023898,2]
[419758069,1775357450246,-303.7716,0.00023898,2]
[419758071,1775357450255,-303.7716,0.00023898,2]
[419758073,1775357450264,-303.7716,0.00023898,2]
[419758075,1775357450273,-303.7716,0.00023898,2]
[419758077,1775357450282,-303.7716,0.00023898,2]
[419758079,1775357450291,-303.7716,0.00023898,2]
[419758081,1775357450300,-303.7716,0.00023898,2]
[419758083,1775357450309,-303.7716,0.00023898,2]
[419758085,1775357450318,-303.7716,0.00023898,2]
[419758087,1775357450327,-303.7716,0.00023898,2]
[419758089,1775357450337,-303.7716,0.00023898,2]
[419758091,1775357450347,-303.7716,0.00023898,2]
[419758093,1775357450357,-303.771597,0.00023898,2]
[419758096,1775357450369,-151.0,0.00023898,2]
[419758098,1775357450378,-151.0,0.00023898,2]
[419758100,1775357450387,-151.0,0.00023898,2]
[419758101,1775357450396,-151.0,0.00023898,2]
[419758104,1775357450406,-151.0,0.00023898,2]
[419758106,1775357450415,-151.0,0.00023898,2]
[419758108,1775357450424,-151.0,0.00023898,2]
[419758109,1775357450433,-170.639595,0.00023898,2]
[419758111,1775357450442,-164.798766,0.00023898,2]
[419758113,1775357450452,-151.0,0.00023898,2]
[419758115,1775357450461,-165.745608,0.00023898,2]
[419758117,1775357450470,-151.0,0.00023898,2]
[419758120,1775357450479,-151.0,0.00023898,2]
[419758122,1775357450489,-151.0,0.00023898,2]
[419758124,1775357450498,-151.0,0.00023898,2]
[419758126,1775357450507,-151.0,0.00023898,2]
[419758128,1775357450516,-151.0,0.00023898,2]
[419758130,1775357450524,-151.0,0.00023898,2]
[419758131,1775357450534,-151.0,0.00023898,2]
[419758134,1775357450543,-561.578998,0.00023898,2]
[419758136,1775357450552,-225.298327,0.00023898,2]
[419758138,1775357450562,-561.578998,0.00023898,2]
[419758140,1775357450571,-561.578998,0.00023898,2]
[419758142,1775357450580,-561.578998,0.00023898,2]
[419758144,1775357450589,-561.578998,0.00023898,2]
[419758146,1775357450598,-561.578998,0.00023898,2]
[419758148,1775357450607,-561.578998,0.00023898,2]
[419758149,1775357450617,-561.578998,0.00023898,2]
[419758151,1775357450625,-561.578998,0.00023898,2]
[419758153,1775357450634,-561.578998,0.00023898,2]
[419758155,1775357450643,-561.578998,0.00023898,2]
[419758157,1775357450654,-561.578998,0.00023898,2]
[419758160,1775357450665,-561.578998,0.00023898,2]
[419758161,1775357450674,-561.578998,0.00023898,2]
[419758164,1775357450683,-561.578998,0.00023898,2]
[419758166,1775357450693,-561.578998,0.00023898,2]
[419758167,1775357450702,-561.578998,0.00023898,2]
[419758170,1775357450711,-561.578998,0.00023898,2]
[419758172,1775357450720,-561.578998,0.00023898,2]
[419758174,1775357450730,-561.578989,0.00023898,2]
[419758176,1775357450739,-487.774333,0.00023898,2]
[419758178,1775357450749,-487.774333,0.00023898,2]
[419758179,1775357450758,-487.774333,0.00023898,2]
[419758182,1775357450768,-487.774333,0.00023898,2]
[419758184,1775357450777,-487.774333,0.00023898,2]
[419758185,1775357450787,-487.774333,0.00023898,2]
[419758188,1775357450796,-487.774333,0.00023898,2]
[419758190,1775357450805,-487.774333,0.00023898,2]
[419758192,1775357450820,-487.774333,0.00023898,2]
[419758195,1775357450834,-487.774333,0.00023898,2]
[419758197,1775357450848,-151.0,0.00023898,2]
[419758199,1775357450860,-151.0,0.00023898,2]
[419758202,1775357450872,-151.0,0.00023898,2]
[419758204,1775357450885,-151.0,0.00023898,2]
[419758206,1775357450898,-151.0,0.00023898,2]
[419758209,1775357450910,-175.755775,0.00023898,2]
[419758211,1775357450923,-487.774333,0.00023898,2]
[419758214,1775357450935,-487.774333,0.00023898,2]
[419758216,1775357450949,-487.774333,0.00023898,2]
[419758218,1775357450962,-487.774333,0.00023898,2]
[419758221,1775357450974,-487.774333,0.00023898,2]
[419758223,1775357450986,-487.774333,0.00023898,2]
[419758225,1775357450998,-487.774333,0.00023898,2]
[419758228,1775357451010,-487.774333,0.00023898,2]
[419758230,1775357451020,-487.774333,0.00023898,2]
[419758232,1775357451032,-487.774324,0.00023898,2]
[419758235,1775357451043,-151.0,0.00023898,2]
[419758237,1775357451057,-288.04189,0.00023898,2]
[419758239,1775357451070,-151.0,0.00023898,2]
[419758242,1775357451084,-151.0,0.00023898,2]
[419758244,1775357451097,-151.0,0.00023898,2]
[419758247,1775357451110,-151.972135,0.00023898,2]
[419758249,1775357451123,-2148.338339,0.00023898,2]
[419758251,1775357451134,-2148.338339,0.00023898,2]
[419758254,1775357451144,-2148.338339,0.00023898,2]
[419758256,1775357451154,-151.0,0.00023898,2]
[419758258,1775357451164,-151.0,0.00023898,2]
[419758260,1775357451178,-151.0,0.00023898,2]
[419758263,1775357451189,-2148.338339,0.00023898,2]
[419758265,1775357451200,-2148.338339,0.00023898,2]
[419758267,1775357451212,-2148.338339,0.00023898,2]
[419758270,1775357451225,-2148.338339,0.00023898,2]
[419758272,1775357451237,-2148.338339,0.00023898,2]
[419758274,1775357451249,-2148.338339,0.00023898,2]
[419758276,1775357451261,-2148.338339,0.00023898,2]
[419758279,1775357451272,-2148.338339,0.00023898,2]
[419758281,1775357451282,-2148.338335,0.00023898,2]
[419758283,1775357451292,-152.653563,0.00023898,2]
[419758285,1775357451303,-2071.029602,0.00023898,2]
[419758287,1775357451313,-2071.029602,0.00023898,2]
[419758290,1775357451324,-2071.029602,0.00023898,2]
[419758292,1775357451336,-2071.029602,0.00023898,2]
[419758294,1775357451347,-2071.029602,0.00023898,2]
[419758296,1775357451358,-2071.029602,0.00023898,2]
[419758298,1775357451369,-2071.029602,0.00023898,2]
[419758301,1775357451379,-2071.029602,0.00023898,2]
[419758303,1775357451390,-2071.029602,0.00023898,2]
[419758305,1775357451400,-2071.029602,0.00023898,2]
[419758307,1775357451411,-2071.029602,0.00023898,2]
[419758309,1775357451422,-2071.029595,0.00023898,2]
[419758312,1775357451433,-151.0,0.00023898,2]
[419758314,1775357451445,-151.0,0.00023898,2]
[419758316,1775357451455,-271.909544,0.00023898,2]
[419758318,1775357451466,-151.0,0.00023898,2]
[419758320,1775357451477,-151.0,0.00023898,2]
[419758323,1775357451488,-151.0,0.00023898,2]
[419758325,1775357451499,-151.0,0.00023898,2]
[419758327,1775357451510,-151.0,0.00023898,2]
[419758329,1775357451521,-151.0,0.00023898,2]
[419758331,1775357451532,-151.0,0.00023898,2]
[419758334,1775357451543,-151.0,0.00023898,2]
[419758336,1775357451555,-151.0,0.00023898,2]
[419758338,1775357451565,-297.923787,0.00023898,2]
[419758340,1775357451576,-151.264515,0.00023898,2]
[419758342,1775357451587,-151.264515,0.00023898,2]
[419758344,1775357451598,-151.0,0.00023898,2]
[419758347,1775357451610,-151.264515,0.00023898,2]
[419758349,1775357451620,-151.0,0.00023898,2]
[419758351,1775357451633,-477.316396,0.00023898,2]
[419758353,1775357451643,-151.264518,0.00023898,2]
[419758355,1775357451654,-151.0,0.00023898,2]
[419758357,1775357451666,-477.316396,0.00023898,2]
[419758360,1775357451677,-477.316396,0.00023898,2]
[419758362,1775357451687,-477.316405,0.00023898,2]
[419758364,1775357451698,-240.637436,0.00023898,2]
[419758366,1775357451709,-240.637436,0.00023898,2]
[419758368,1775357451719,-240.637436,0.00023898,2]
[419758371,1775357451730,-240.637444,0.00023898,2]
[419758373,1775357451741,-151.0,0.00023898,2]
[419758375,1775357451753,-175.36986,0.00023898,2]
[419758377,1775357451764,-545.61,0.00023898,2]
[419758379,1775357451775,-545.61,0.00023898,2]
[419758381,1775357451786,-545.61,0.00023898,2]
[419758383,1775357451798,-545.61,0.00023898,2]
[419758386,1775357451810,-545.61,0.00023898,2]
[419758399,1775357451925,-545.61,0.00023898,2]
[419758401,1775357451941,-685.18,0.00023898,2]
[419758403,1775357451951,-1000.0,0.000239,2]
[419758405,1775357451961,-420.0,0.00023906,2]
[419758407,1775357451970,-500.49733101,0.00023973,2]
[419758409,1775357451979,-500.0,0.00023973,2]
[419758411,1775357451989,-222.58136916,0.00023973,2]
[419758413,1775357451998,-500.0,0.00023973,2]
[419758415,1775357452008,-500.0,0.00023973,2]
[419758417,1775357452017,-500.0,0.00023973,2]
[419758420,1775357452027,-500.0,0.00023973,2]
[419758421,1775357452036,-500.0,0.00023973,2]
[419758424,1775357452046,-470.20953224,0.00023973,2]
[419758426,1775357452055,-500.0,0.00023973,2]
[419758428,1775357452066,-500.0,0.00023973,2]
[419758430,1775357452075,-500.0,0.00023973,2]
[419758432,1775357452084,-500.0,0.00023973,2]
[419758434,1775357452093,-500.0,0.00023973,2]
[419758436,1775357452103,-500.0,0.00023973,2]
[419758438,1775357452112,-500.0,0.00023973,2]
[419758440,1775357452121,-500.0,0.00023973,2]
[419758442,1775357452130,-500.0,0.00023973,2]
[419758444,1775357452140,-500.0,0.00023973,2]
[419758446,1775357452149,-500.0,0.00023973,2]
[419758448,1775357452159,-500.0,0.00023973,2]
[419758450,1775357452168,-607.10434651,0.00023973,2]
[419758452,1775357452177,-500.0,0.00023973,2]
[419758453,1775357452187,-500.0,0.00023973,2]
[419758455,1775357452196,-500.0,0.00023973,2]
[419758457,1775357452205,-151.0,0.00023997,2]
[419758459,1775357452214,-151.0,0.00023997,2]
[419758461,1775357452223,-287.6579,0.00023997,2]
[419758463,1775357452233,-151.0,0.00023997,2]
[419758465,1775357452242,-151.0,0.00023997,2]
[419758467,1775357452251,-151.0,0.00023997,2]
[419758469,1775357452260,-239.077172,0.00023997,2]
[419758471,1775357452268,-239.077172,0.00023997,2]
[419758473,1775357452278,-239.077172,0.00023997,2]
[419758475,1775357452287,-239.077172,0.00023997,2]
[419758477,1775357452297,-151.0,0.00023997,2]
[419758479,1775357452306,-151.0,0.00023997,2]
[419758481,1775357452315,-151.0,0.00023997,2]
[419758483,1775357452324,-151.0,0.00023997,2]
[419758485,1775357452334,-153.101437,0.00023997,2]
[419758487,1775357452343,-151.0,0.00023997,2]
[419758489,1775357452352,-151.0,0.00023997,2]
[419758491,1775357452361,-151.0,0.00023997,2]
[419758493,1775357452370,-155.988567,0.00023997,2]
[419758496,1775357452381,-242.89737,0.00023997,2]
[419758498,1775357452391,-275718.71368169,0.00023998,2]
[419758500,1775357452399,-151.0,0.00023998,2]
[419758502,1775357452409,-151.0,0.00023998,2]
[419758504,1775357452418,-151.0,0.00023998,2]
[419758506,1775357452426,-151.0,0.00023998,2]
[419758508,1775357452435,-151.0,0.00023998,2]
[419758509,1775357452444,-151.0,0.00023998,2]
[419758511,1775357452453,-151.0,0.00023998,2]
[419758513,1775357452462,-239.077172,0.00023998,2]
[419758515,1775357452471,-239.077172,0.00023998,2]
[419758517,1775357452481,-239.077172,0.00023998,2]
[419758519,1775357452490,-239.077172,0.00023998,2]
[419758521,1775357452499,-151.0,0.00023998,2]
[419758523,1775357452508,-151.0,0.00023998,2]
[419758526,1775357452518,-151.0,0.00023998,2]
[419758528,1775357452527,-151.0,0.00023998,2]
[419758529,1775357452536,-151.0,0.00023998,2]
[419758531,1775357452545,-151.0,0.00023998,2]
[419758533,1775357452554,-151.0,0.00023998,2]
[419758535,1775357452563,-151.0,0.00023998,2]
[419758537,1775357452572,-174.101638,0.00023998,2]
[419758539,1775357452583,-151.0,0.00023998,2]
[419758541,1775357452591,-151.0,0.00023998,2]
[419758543,1775357452600,-157.0,0.00024,2]
[419758545,1775357452609,-158.0,0.00024,2]
[419758547,1775357452618,-203.0,0.00024,2]
[419758549,1775357452627,-160.11141673,0.00024,2]
[419758551,1775357452637,-350.0,0.00024018,2]
[419758553,1775357452646,-213.208826,0.0002403,14]
[419758555,1775357452655,-325.0256955,0.0002403,2]
[419758557,1775357452664,-930.7,0.00024057,2]
[419758560,1775357452674,-502.54691791,0.0002408,2]
[419758561,1775357452684,-2398.4119403,0.0002408,2]
[419758563,1775357452693,-491.3447372,0.00024107,2]
[419758565,1775357452702,-229.34709534,0.00024139,2]
[419758567,1775357452711,-236.0,0.00024141,2]
[419758569,1775357452720,-179.314125,0.00024158,14]
[419758571,1775357452729,-207.850947,0.00024158,14]
[419758573,1775357452738,-254.028345,0.00024158,14]
[419758575,1775357452747,-190.114239,0.00024158,14]
[419758577,1775357452756,-241.441753,0.00024158,14]
[419758579,1775357452765,-269.328506,0.00024158,14]
[419758581,1775357452774,-319.813237,0.00024158,14]
[419758583,1775357452783,-160.961169,0.00024158,14]
[419758585,1775357452793,-178.722394,0.00024158,14]
[419758587,1775357452802,-1333.57331076,0.00024163,2]
[419758589,1775357452812,-237.0,0.00024182,2]
[419758591,1775357452821,-1435.70881911,0.00024196,2]
[419758593,1775357452831,-1500.0,0.00024196,2]
[419758595,1775357452840,-1084.08180045,0.00024196,2]
[419758597,1775357452849,-503.17410455,0.00024196,2]
[419758599,1775357452860,-1500.0,0.00024196,2]
[419758601,1775357452869,-236.0,0.0002422,2]
[419758603,1775357452878,-345.10845839,0.00024233,2]
[419758605,1775357452888,-1500.0,0.00024233,2]
[419758607,1775357452897,-1500.0,0.00024233,2]
[419758609,1775357452906,-1500.0,0.00024233,2]
[419758611,1775357452916,-1623.61731189,0.00024233,2]
[419758613,1775357452926,-1500.0,0.00024233,2]
[419758615,1775357452935,-523.02314893,0.00024233,2]
[419758617,1775357452945,-236.0,0.00024247,2]
[419758619,1775357452955,-236.0,0.0002426,2]
[419758621,1775357452964,-236.0,0.00024263,2]
[419758623,1775357452973,-930.7,0.00024289,2]
[419758625,1775357452982,-5888.0,0.00024311,2]
[419758627,1775357452991,-236.0,0.00024346,2]
[419758629,1775357453000,-507.07091775,0.00024421,2]
[419758631,1775357453009,-1000.0,0.00024421,2]
[419758633,1775357453018,-554.83547207,0.00024421,2]
[419758635,1775357453027,-1000.0,0.00024421,2]
[419758637,1775357453036,-1000.0,0.00024421,2]
[419758639,1775357453045,-1000.0,0.00024421,2]
[419758640,1775357453055,-1000.0,0.00024421,2]
[419758642,1775357453064,-1000.0,0.00024421,2]
[419758644,1775357453073,-1000.0,0.00024421,2]
[419758646,1775357453082,-1000.0,0.00024421,2]
[419758648,1775357453092,-998.9007289,0.00024421,2]
[419758650,1775357453101,-1000.0,0.00024421,2]